[Event "5th Shenzhen Longgang Masters 2024"]
[Site "Shengzhen"]
[Date "2024.03.07"]
[Round "7.1"]
[White "Ma, Qun"]
[Black "Xu, Xiangyu"]
[Result "0-1"]
[ECO "B99"]
[WhiteElo "2651"]
[BlackElo "2623"]
[Annotator "TA"]
[PlyCount "94"]
[EventDate "2024.02.28"]
[EventType "tourn"]
[EventCountry "CHN"]
[SourceTitle "playchess.com"]
[Source "ChessBase"]
[SourceQuality "1"]
[TimeControl "40/5400+30:1800+30"]

{[%evp 28,94,135,151,135,143,154,134,178,95,112,48,52,39,61,20,23,19,143,152,152,0,29,9,10,-13,-10,-14,-18,-10,-5,-26,0,-16,-22,-8,-8,-8,-8,-8,-8,-114,-101,-102,-103,-132,-29,-360,-332,-643,-653,-644,-589,-1008,-1008,-859,-762,-1907,-1892,-2291,-2156,-29979,-29980,-29981,-29982,-29975,-29976,-29976,-29976]} 1. e4 {[%emt 0:00:09]} c5 {[%emt 0:00:46]} 2. Nf3 {[%emt 0:00:06]} d6 {[%emt 0:00:44]} 3. d4 {[%emt 0:00:11]} cxd4 {[%emt 0:00:05]} 4. Nxd4 {[%emt 0:00:08]} Nf6 {[%emt 0:00:07]} 5. Nc3 {[%emt 0:00:04]} a6 {[%emt 0:00:07]} 6. Bg5 {[%emt 0:00:57]} e6 {[%emt 0:00:34]} 7. Qf3 {[%emt 0:00:24]} Nbd7 {[%emt 0:02:55]} 8. O-O-O {[%emt 0:00:15]} Qc7 {[%emt 0:00:42]} 9. Qg3 {[%emt 0:00:26]} b5 {[%emt 0:10:02]} 10. Bd3 {[%emt 0:00:29]} Be7 {[%emt 0:02:44]} 11. Rhe1 {[%emt 0:00:23]} O-O $5 {[%emt 0:08:17][%mdl 4] Exploring less charted territory.} 12. f4 {[%emt 0:16:29]} Nc5 $5 {[%emt 0:38:05][%mdl 4] An interesting side line. B99: Sicilian Najdorf: 6 Bg5 e6 7 f4 Be7 8 Qf3 Qc7 9 0-0-0 Nbd7.} 13. e5 {[%emt 0:13:21]} dxe5 {[%emt 0:00:18]} 14. fxe5 {[%emt 0:00:14]} Nh5 {[%emt 0:00:08]} 15. Qh4 {[%emt 0:12:30]} Bxg5+ {[%emt 0:00:09]} 16. Qxg5 {[%emt 0:00:05]} g6 {[%emt 0:00:15]} 17. g4 {[%emt 0:32:01]} f6 {[%emt 0:00:10]} 18. exf6 {[%emt 0:01:21]} (18. Qe3 $18 Nxd3+ 19. Qxd3 (19. Rxd3 fxe5 20. gxh5 exd4 $18)) 18... Nxf6 {[%emt 0:00:12]} 19. Rf1 $146 {[%emt 0:07:57]} (19. b4 $16 Nb7 20. Ne4 (20. Nxe6 $2 Bxe6 21. Nxb5 axb5 $19)) ({Predecessor:} 19. a3 Rb8 20. b4 Nxd3+ 21. Rxd3 Qxh2 22. Rf1 Kg7 23. Rdf3 h6 24. Qc5 Rb7 25. Rxf6 Rxf6 26. Rxf6 Kxf6 27. Qxc8 Rf7 28. Ne4+ Kg7 29. Nxe6+ Kh7 30. Nf6+ {1-0 Salov,S (2297)-Kantinti,S (2200) Olympiad-35 Bled 2002 (13.2)}) 19... Kg7 $1 $14 {[%emt 0:02:05]} 20. Qh4 {[%emt 0:02:07]} Bd7 {[%emt 0:02:43]} 21. Be2 {[%emt 0:02:07]} Qe5 $1 {[%emt 0:14:37]} 22. Bf3 {[%emt 0:02:20]} Rae8 {[%emt 0:01:10]} (22... Nd5 $1 $11) 23. g5 $16 {[%emt 0:02:35]} Nd5 {[%emt 0:00:09]} 24. Bxd5 $2 {[%emt 0:00:46]} (24. Nxe6+ Bxe6 25. Rfe1 (25. Bxd5 $2 Rxf1 26. Rxf1 Bxd5 $19) (25. Nxd5 $2 Bxd5 26. Rxd5 Rxf3 $19) 25... Qf4+ 26. Qxf4 Nxf4 $19) (24. Rfe1 $1 $16 {[%cal Re1e5]} Qf4+ 25. Qxf4 Nxf4 26. b4) 24... exd5 {[%emt 0:00:15]} 25. Rxf8 {[%emt 0:02:52]} Rxf8 {[%emt 0:00:05]} 26. Nb3 {[%emt 0:00:30]} Ne6 {[%emt 0:01:52]} 27. Nxd5 {[%emt 0:02:27]} Qxg5+ {[%emt 0:00:07]} 28. Qxg5 {[%emt 0:00:02]} Nxg5 {[%emt 0:00:05]} 29. Nc5 {[%emt 0:00:24]} Bc8 {[%emt 0:00:24]} (29... Bg4 $5 30. Rg1 h5 $17) 30. b4 {[%emt 0:00:49]} Rf2 {[%emt 0:05:27]} 31. Rd2 {[%emt 0:00:51]} Rxd2 {[%emt 0:00:14]} 32. Kxd2 {[%emt 0:00:01]} Nf3+ {[%emt 0:00:02]} 33. Ke2 {[%emt 0:01:01]} Nxh2 {[%emt 0:00:05]} 34. Ne7 {[%emt 0:00:16]} (34. Nc7 $11) 34... Bg4+ $17 {[%emt 0:00:11]} 35. Kf2 {[%emt 0:00:20]} h5 {[%emt 0:00:11]} 36. Nxa6 {[%emt 0:00:21] [#]} h4 {[%emt 0:00:49]} (36... Be6 $1 $17 {[%cal Og7f6] Strongly threatening ...Kf6!} 37. Nc7 Ng4+ (37... Bxa2 38. Nxb5 Ng4+ 39. Kf3 $15) 38. Kg3 Bc4 (38... Bxa2 39. Nxb5 g5 40. Nc7 $15)) 37. Nc5 $2 {[%emt 0:01:08][%mdl 8192] [#]} (37. Nc6 $1 $11) 37... Bf3 $1 $19 {[%emt 0:01:19]} 38. Nc8 $2 {[%emt 0:00:31]} (38. Nd7 Be4 39. Ke3 Bxc2 40. Ne5) 38... Bd5 $19 {[%emt 0:00:23]} 39. Nb6 {[%emt 0:00:31]} Ng4+ {[%emt 0:00:06]} ({Weaker is} 39... Bxa2 40. Kg2 $17) 40. Kg1 {[%emt 0:00:00]} Bf3 {[%emt 0:00:00]} 41. Ne6+ {[%emt 0:00:48]} Kf6 {[%emt 0:03:16]} 42. Nd4 {[%emt 0:00:02]} Be4 {[%emt 0:00:47]} 43. Nd7+ {[%emt 0:00:25]} Ke7 {[%emt 0:00:03]} 44. Nc5 {[%emt 0:00:33]} Ba8 {[%emt 0:00:26]} 45. Ne2 {[%emt 0:01:28]} h3 {[%emt 0:00:03]} 46. Ng3 {[%emt 0:00:02]} h2+ {[%emt 0:00:02]} 47. Kf1 {[%emt 0:00:02]} Ne3+ {[%emt 0:00:03]} 0-1

[Event "5th Shenzhen Longgang Masters 2024"]
[Site "Shengzhen"]
[Date "2024.03.07"]
[Round "7.2"]
[White "Yu, Yangyi"]
[Black "Giri, Anish"]
[Result "1/2-1/2"]
[ECO "A14"]
[WhiteElo "2720"]
[BlackElo "2749"]
[Annotator "TA"]
[PlyCount "54"]
[EventDate "2024.02.28"]
[EventType "tourn"]
[EventCountry "CHN"]
[SourceTitle "playchess.com"]
[Source "ChessBase"]
[SourceQuality "1"]
[TimeControl "40/5400+30:1800+30"]

{[%evp 11,54,0,13,-10,-3,-16,-6,-7,-6,-31,8,-5,-25,-4,-2,-9,-6,-12,-17,-22,-23,-6,-4,-19,0,0,0,0,0,0,0,0,0,0,0,0,0,0,0,0,0,0,0,-7,0]} 1. c4 {[%emt 0:00:06]} Nf6 {[%emt 0:00:17]} 2. g3 {[%emt 0:00:29]} e6 {[%emt 0:00:28]} 3. Bg2 {[%emt 0:00:10]} d5 {[%emt 0:00:05]} 4. Nf3 {[%emt 0:00:12]} Be7 {[%emt 0:00:06]} 5. O-O {[%emt 0:00:35]} O-O {[%emt 0:00:04]} 6. d3 {[%emt 0:00:52]} c5 {[%emt 0:01:28]} 7. Ne5 {[%emt 0:00:45]} Qc7 {[%emt 0:08:55]} 8. f4 {[%emt 0:00:23]} Rd8 {[%emt 0:03:30]} 9. Nc3 {[%emt 0:00:54]} a6 {[%emt 0:01:48] Prevents Nb5.} 10. Qe1 {[%emt 0:00:43]} b5 {[%emt 0:07:10]} 11. cxb5 {[%emt 0:07:39]} axb5 {[%emt 0:03:21]} 12. Nxb5 {[%emt 0:01:18]} Qb6 {[%emt 0:00:05]} 13. a4 {[%emt 0:02:57]} Ba6 {[%emt 0:03:21]} 14. Bd2 {[%emt 0:04:30] [#] And now Ba5 would win.} Bxb5 {[%emt 0:06:29]} 15. axb5 {[%emt 0:00:14]} Rxa1 {[%emt 0:00:02]} 16. Qxa1 {[%emt 0:00:12] Ba5 would now be deadly.} Qxb5 {[%emt 0:00:10] The position is equal.} 17. Qa7 {[%emt 0:02:59]} Nc6 {[%emt 0:02:10]} 18. Nxc6 {[%emt 0:03:58]} Qxc6 {[%emt 0:00:08]} 19. Ra1 {[%emt 0:04:29]} (19. Qxe7 $2 {loses.} Rd7 $19) 19... Bf8 {[%emt 0:01:03]} 20. Qa6 {[%emt 0:08:28]} Qd7 {[%emt 0:11:04]} 21. Bc3 {[%emt 0:03:20]} Ng4 {[%emt 0:00:40]} 22. Bf3 {[%emt 0:03:35] This pair of bishops is nice.} Ne3 {[%emt 0:00:11]} 23. Qa4 {[%emt 0:01:49]} Qe7 {[%emt 0:01:44]} 24. Qa7 {[%emt 0:06:41]} Rd7 {[%emt 0:02:04]} 25. Qb8 {[%emt 0:06:14]} Rd8 {[%emt 0:00:57]} 26. Qa7 {[%emt 0:03:23]} Rd7 {[%emt 0:00:27]} 27. Qb8 {[%emt 0:00:07]} Rd8 {[%emt 0:00:03] An uneventful encounter.   Weighted Error Value: White=0.04 (flawless) /Black=0.04 (flawless) .  Inaccurate:     	---       	Black=1      OK:         	White=12    	Black=7} 1/2-1/2

[Event "5th Shenzhen Longgang Masters 2024"]
[Site "Shengzhen"]
[Date "2024.03.07"]
[Round "7.3"]
[White "Artemiev, Vladislav"]
[Black "Bu, Xiangzhi"]
[Result "1/2-1/2"]
[ECO "D94"]
[WhiteElo "2711"]
[BlackElo "2671"]
[Annotator "TA"]
[PlyCount "60"]
[EventDate "2024.02.28"]
[EventType "tourn"]
[EventCountry "CHN"]
[SourceTitle "playchess.com"]
[Source "ChessBase"]
[SourceQuality "1"]
[TimeControl "40/5400+30:1800+30"]

{[%evp 13,60,28,43,41,34,22,25,8,5,16,7,22,17,9,29,8,6,9,19,14,16,14,23,26,26,-8,-12,-20,-16,-17,-10,-11,-10,-16,-8,-10,-9,-10,-7,-9,-9,-8,-7,-11,0,0,0,0,0]} 1. c4 {[%emt 0:00:12]} c6 {[%emt 0:01:09]} 2. Nf3 {[%emt 0:00:48]} d5 {[%emt 0:00:29]} 3. e3 {[%emt 0:00:18]} Nf6 {[%emt 0:00:19]} 4. Nc3 {[%emt 0:00:23]} g6 {[%emt 0:02:16]} 5. d4 {[%emt 0:03:56]} Bg7 {[%emt 0:00:04]} 6. Be2 {[%emt 0:10:05]} O-O {[%emt 0:00:06]} 7. O-O {[%emt 0:00:13]} b6 {[%emt 0:02:20]} 8. a4 {[%emt 0:13:10]} Bb7 {[%emt 0:03:14]} 9. cxd5 {[%emt 0:14:40]} cxd5 {[%emt 0:06:47]} 10. Qb3 {[%emt 0:09:05] Weiß hat minimalen Vorteil.} a6 {[%emt 0:04:21]} 11. Ne5 {[%emt 0:05:01]} Nc6 {[%emt 0:00:58]} 12. Nxc6 {[%emt 0:00:20]} Bxc6 {[%emt 0:00:02]} 13. Bd2 {[%emt 0:00:21][%cal Bc1d2,Bd2e1,Be1g3][%mdl 32]} Qd7 {[%emt 0:07:13]} 14. Rfc1 {[%emt 0:02:10]} Rfb8 {[%emt 0:01:40]} 15. Be1 {[%emt 0:02:04]} e6 {[%emt 0:03:31]} 16. f3 {[%emt 0:04:59]} Ne8 {[%emt 0:00:48]} 17. Bg3 {[%emt 0:00:59]} Nd6 {[%emt 0:00:44]} 18. Nd1 {[%emt 0:01:30][%cal Bc3d1,Bd1f2,Bf2d3][%mdl 32]} h5 {[%emt 0:26:25]} 19. Rc3 {[%emt 0:06:07]} Bf8 {[%emt 0:08:34] Die Stellung ist ausgeglichen.} 20. Nf2 {[%emt 0:03:44]} b5 {[%emt 0:02:36]} 21. Qc2 {[%emt 0:07:51]} Rc8 {[%emt 0:00:42] Weiss sollte ...b4 verhindern.} 22. Bxd6 {[%emt 0:01:38]} Bxd6 {[%emt 0:00:19]} 23. Rc1 {[%emt 0:00:43]} Bb7 {[%emt 0:00:29]} 24. axb5 {[%emt 0:01:00]} axb5 {[%emt 0:00:18]} 25. Nd3 {[%emt 0:01:22]} b4 {[%emt 0:11:26]} 26. Rxc8+ {[%emt 0:00:07]} Rxc8 {[%emt 0:00:11]} 27. Qd2 {[%emt 0:01:17]} Rxc1+ {[%emt 0:00:08]} 28. Qxc1 {[%emt 0:00:04]} Ba6 {[%emt 0:00:28]} 29. Nc5 {[%emt 0:00:19]} Bxc5 {[%emt 0:00:03]} 30. Bxa6 {[%emt 0:00:07]} Bd6 {[%emt 0:00:02] Gewichteter Fehlerwert: Weiß=0.04 (makellos) /Schwarz=0.03 (makellos) .  Ungenau:       	Weiß=1     	---        OK:         	Weiß=14    	Schwarz=11} 1/2-1/2

[Event "5th Shenzhen Longgang Masters 2024"]
[Site "Shengzhen"]
[Date "2024.03.07"]
[Round "7.4"]
[White "Dubov, Daniil"]
[Black "Erigaisi Arjun"]
[Result "1/2-1/2"]
[ECO "D11"]
[WhiteElo "2708"]
[BlackElo "2738"]
[Annotator "TA"]
[PlyCount "61"]
[EventDate "2024.02.28"]
[EventType "tourn"]
[EventCountry "CHN"]
[SourceTitle "playchess.com"]
[Source "ChessBase"]
[SourceQuality "1"]
[TimeControl "40/5400+30:1800+30"]

{[%evp 9,61,-8,8,16,10,17,15,14,22,19,25,16,33,0,0,0,0,0,0,0,0,0,0,0,0,0,12,31,30,24,19,31,91,88,88,92,87,80,88,103,94,105,94,82,79,81,80,89,76,56,49,50,37,4]} 1. d4 {[%emt 0:00:02]} d5 {[%emt 0:00:39]} 2. c4 {[%emt 0:00:14]} c6 {[%emt 0:00:06][%cal Bc7c6,Bc6c5,Bc5c4][%mdl 32]} 3. Nf3 {[%emt 0:00:28]} Nf6 {[%emt 0:00:07]} 4. Qb3 {[%emt 0:02:17]} e6 {[%emt 0:00:24]} 5. g3 {[%emt 0:01:06]} c5 {[%emt 0:00:17]} 6. cxd5 {[%emt 0:19:30]} exd5 {[%emt 0:05:14]} 7. Bg2 {[%emt 0:03:03]} c4 {[%emt 0:07:13]} 8. Qc2 {[%emt 0:01:21] The position is equal.} Nc6 {[%emt 0:00:08]} 9. O-O {[%emt 0:00:18]} Be7 {[%emt 0:04:22]} 10. Nc3 {[%emt 0:02:53]} O-O {[%emt 0:01:28]} 11. Bg5 {[%emt 0:00:15]} Be6 {[%emt 0:01:53]} 12. Rad1 {[%emt 0:01:30]} h6 {[%emt 0:03:42]} 13. Bxf6 {[%emt 0:02:58]} Bxf6 {[%emt 0:00:13]} 14. a3 {[%emt 0:02:36]} Qb6 {[%emt 0:17:33]} 15. e3 {[%emt 0:07:03]} Rad8 {[%emt 0:01:06]} 16. Nd2 {[%emt 0:02:46]} Qa6 {[%emt 0:05:58]} 17. b3 {[%emt 0:09:26]} cxb3 {[%emt 0:07:29]} 18. Qxb3 {[%emt 0:01:40][%cal Rg2d5]} Na5 {[%emt 0:01:52]} 19. Qa2 {[%emt 0:04:36]} Qd6 {[%emt 0:00:07]} 20. Rb1 {[%emt 0:01:20]} a6 {[%emt 0:02:16] [#] Against Rb5} (20... b6 $14) 21. Nb3 $1 $16 {[%emt 0:05:14]} Nxb3 {[%emt 0:00:06]} 22. Qxb3 {[%emt 0:00:24]} Rd7 {[%emt 0:01:22]} 23. Na4 {[%emt 0:01:49]} b5 {[%emt 0:00:28]} 24. Nc5 {[%emt 0:03:37]} Rc7 {[%emt 0:05:52]} 25. a4 {[%emt 0:02:10]} Rb8 {[%emt 0:00:05]} 26. Qd3 {[%emt 0:02:26]} Bd7 {[%emt 0:07:14]} 27. Rfc1 {[%emt 0:05:23]} Rbc8 {[%emt 0:00:38]} 28. axb5 {[%emt 0:00:37] White is more active.} Bxb5 {[%emt 0:01:20]} 29. Qd2 {[%emt 0:02:36]} Be7 {[%emt 0:01:56]} 30. Qa2 {[%emt 0:01:42]} Qf6 {[%emt 0:04:00]} 31. Qxd5 {[%emt 0:02:30] Weighted Error Value: White=0.03 (flawless) /Black=0.04 (flawless) .  Mistake:       	---       	Black=1      Inaccurate:     	White=2     	---        OK:         	White=10    	Black=9      Best:        	White=1     	---        Strong:       	White=1     	---} 1/2-1/2